fUST/lending_fUST_20240412
["ID","MTS","AMOUNT","RATE_DAILY","PERIOD"]
[322242132,1712911838701,-500.0,0.00027397,2]
[322242134,1712911838710,-500.0,0.00027397,2]
[322242137,1712911838720,-506.30951657,0.00027397,2]
[322242138,1712911838730,-558.6,0.00027397,2]
[322242140,1712911838739,-500.0,0.00027397,2]
[322242142,1712911838748,-500.0,0.00027397,2]
[322242144,1712911838758,-500.0,0.00027397,2]
[322242146,1712911838769,-511.51799614,0.00027397,2]
[322242148,1712911838779,-500.0,0.00027397,2]
[322242150,1712911838788,-500.0,0.00027397,2]
[322242152,1712911838798,-500.0,0.00027397,2]
[322242165,1712911838909,-500.0,0.00027397,2]
[322242167,1712911838919,-552.55,0.00027397,2]
[322242169,1712911838928,-566.89,0.00027397,2]
[322242171,1712911838937,-500.0,0.00027397,2]
[322242173,1712911838946,-500.0,0.00027397,2]
[322242175,1712911838955,-500.0,0.00027397,2]
[322242177,1712911838964,-615.32305045,0.00027397,2]
[322242178,1712911838974,-500.0,0.00027397,2]
[322242180,1712911838985,-500.0,0.00027397,2]
[322242182,1712911838994,-500.0,0.00027397,2]
[322242184,1712911839005,-500.0,0.00027397,2]
[322242187,1712911839018,-1646.79,0.00027397,2]
[322242190,1712911839031,-500.0,0.00027397,2]
[322242193,1712911839041,-500.0,0.00027397,2]
[322242196,1712911839052,-500.0,0.00027397,2]
[322242199,1712911839062,-500.0,0.00027397,2]
[322242202,1712911839071,-1223.93,0.00027397,2]
[322242205,1712911839081,-500.0,0.00027397,2]
[322242208,1712911839091,-500.0,0.00027397,2]
[322242211,1712911839100,-591.51596619,0.00027397,2]
[322242213,1712911839112,-500.0,0.00027397,2]
[322242216,1712911839121,-432.00653899,0.00027397,2]
[322242219,1712911839131,-867.99,0.00027397,2]
[322242222,1712911839140,-1164.51,0.00027397,2]
[322242225,1712911839149,-500.0,0.00027397,2]
[322242228,1712911839158,-500.0,0.00027397,2]
[322242231,1712911839168,-907.17,0.00027397,2]
[322242234,1712911839178,-500.0,0.00027397,2]
[322242236,1712911839188,-500.0,0.00027397,2]
[322242238,1712911839197,-1034.85,0.00027397,2]
[322242240,1712911839207,-500.0,0.00027397,2]
[322242242,1712911839216,-500.0,0.00027397,2]
[322242244,1712911839227,-520.62,0.00027397,2]
[322242246,1712911839241,-500.0,0.00027397,2]
[322242249,1712911839251,-500.0,0.00027397,2]
[322242252,1712911839261,-500.0,0.00027397,2]
[322242255,1712911839271,-3515.27,0.00027397,2]
[322242258,1712911839280,-500.0,0.00027397,2]
[322242261,1712911839290,-500.0,0.00027397,2]
[322242264,1712911839299,-500.0,0.00027397,2]
[322242266,1712911839308,-1319.03,0.00027397,2]
[322242267,1712911839318,-972.6,0.00027397,2]
[322242270,1712911839329,-930.67,0.00027397,2]
[322242271,1712911839338,-1490.64,0.00027397,2]
[322242273,1712911839348,-500.0,0.00027397,2]
[322242275,1712911839357,-500.0,0.00027397,2]
[322242277,1712911839366,-12549.98,0.00027397,2]
[322242279,1712911839375,-500.0,0.00027397,2]
[322242281,1712911839384,-500.0,0.00027397,2]
[322242283,1712911839394,-903.28,0.00027397,2]
[322242285,1712911839404,-500.0,0.00027397,2]
[322242287,1712911839413,-507.03594079,0.00027397,2]
[322242289,1712911839423,-2526.84,0.00027397,2]
[322242291,1712911839432,-500.0,0.00027397,2]
[322242293,1712911839441,-500.0,0.00027397,2]
[322242295,1712911839451,-500.0,0.00027397,2]
[322242297,1712911839460,-1001.48,0.00027397,2]
[322242299,1712911839470,-510.37,0.00027397,2]
[322242301,1712911839480,-300.0,0.00027397,2]
[322242303,1712911839489,-500.0,0.00027397,2]
[322242305,1712911839499,-1101.39,0.00027397,2]
[322242307,1712911839510,-1995.73,0.00027397,2]
[322242309,1712911839519,-259.92770034,0.00027397,2]
[322242311,1712911839528,-500.0,0.00027397,2]
[322242313,1712911839536,-5187.6,0.00027397,2]
[322242315,1712911839545,-500.0,0.00027397,2]
[322242317,1712911839555,-690.87,0.00027397,2]
[322242319,1712911839563,-917.0,0.00027397,2]
[322242321,1712911839573,-4042.28,0.00027397,2]
[322242323,1712911839582,-188.76934425,0.00027397,2]
[322242325,1712911839591,-1494.91,0.00027397,2]
[322242327,1712911839600,-500.0,0.00027397,2]
[322242329,1712911839610,-500.0,0.00027397,2]
[322242331,1712911839619,-500.0,0.00027397,2]
[322242333,1712911839628,-500.0,0.00027397,2]
[322242334,1712911839638,-11181.26,0.00027397,2]
[322242336,1712911839647,-2564.78,0.00027397,2]
[322242338,1712911839656,-500.0,0.00027397,2]
[322242340,1712911839665,-532.65883253,0.00027397,2]
[322242342,1712911839673,-1959.68,0.00027397,2]
[322242344,1712911839682,-500.0,0.00027397,2]
[322242346,1712911839691,-500.0,0.00027397,2]
[322242348,1712911839700,-1486.5,0.00027397,2]
[322242350,1712911839710,-1033.75,0.00027397,2]
[322242352,1712911839718,-1148.69,0.00027397,2]
[322242354,1712911839727,-500.0,0.00027397,2]
[322242356,1712911839736,-1638.08,0.00027397,2]
[322242357,1712911839745,-158.09608025,0.00027397,2]
[322242358,1712911839755,-500.0,0.00027397,2]
[322242359,1712911839766,-500.0,0.00027397,2]
[322242360,1712911839775,-166.666666,0.00027397,2]
[322242361,1712911839784,-500.0,0.00027671,2]
[322242362,1712911839793,-730.33,0.00027671,2]
[322242363,1712911839803,-151.0,0.00027671,2]
[322242364,1712911839813,-500.0,0.00027671,2]
[322242365,1712911839822,-574.86754931,0.00027671,2]
[322242366,1712911839831,-500.0,0.00027671,2]
[322242367,1712911839840,-500.0,0.00027671,2]
[322242368,1712911839850,-500.0,0.00027671,2]
[322242369,1712911839859,-920.82,0.00027671,2]
[322242370,1712911839868,-500.0,0.00027671,2]
[322242371,1712911839877,-500.0,0.00027671,2]
[322242372,1712911839887,-505.2499761,0.00027671,2]
[322242373,1712911839896,-1422.85,0.00027671,2]
[322242374,1712911839907,-151.0,0.00027671,2]
[322242375,1712911839917,-500.0,0.00027671,2]
[322242376,1712911839927,-151.0,0.00027671,2]
[322242377,1712911839935,-500.0,0.00027671,2]
[322242378,1712911839946,-151.0,0.00027671,2]
[322242379,1712911839956,-151.0,0.00027671,2]
[322242380,1712911839966,-500.0,0.00027671,2]
[322242381,1712911839976,-500.0,0.00027671,2]
[322242382,1712911839985,-500.0,0.00027671,2]
[322242383,1712911839995,-558.6,0.00027671,2]
[322242384,1712911840005,-500.0,0.00027671,2]
[322242385,1712911840016,-500.0,0.00027671,2]
[322242386,1712911840026,-151.0,0.00027671,2]
[322242387,1712911840036,-500.0,0.00027671,2]
[322242388,1712911840045,-151.0,0.00027671,2]
[322242389,1712911840054,-205.552096,0.00027671,2]
[322242390,1712911840063,-205.552096,0.00027671,2]
[322242391,1712911840072,-500.0,0.00027671,2]
[322242392,1712911840081,-500.0,0.00027671,2]
[322242393,1712911840090,-205.552096,0.00027671,2]
[322242394,1712911840099,-205.552096,0.00027671,2]
[322242395,1712911840108,-566.89,0.00027671,2]
[322242396,1712911840118,-500.0,0.00027671,2]
[322242397,1712911840127,-500.0,0.00027671,2]
[322242398,1712911840136,-500.0,0.00027671,2]
[322242399,1712911840146,-500.0,0.00027671,2]
[322242400,1712911840156,-1646.79,0.00027671,2]
[322242401,1712911840166,-500.0,0.00027671,2]
[322242402,1712911840175,-500.0,0.00027671,2]
[322242403,1712911840185,-500.0,0.00027671,2]
[322242404,1712911840194,-500.0,0.00027671,2]
[322242405,1712911840203,-1223.93,0.00027671,2]
[322242406,1712911840213,-172.50814298,0.00027671,2]
[322242407,1712911840222,-867.99,0.00027671,2]
[322242408,1712911840232,-1164.51,0.00027671,2]
[322242409,1712911840245,-500.0,0.00027671,2]
[322242410,1712911840255,-500.0,0.00027671,2]
[322242411,1712911840266,-907.17,0.00027671,2]
[322242412,1712911840275,-500.0,0.00027671,2]
[322242413,1712911840285,-500.0,0.00027671,2]
[322242414,1712911840294,-1034.85,0.00027671,2]
[322242415,1712911840304,-520.62,0.00027671,2]
[322242416,1712911840314,-500.0,0.00027671,2]
[322242417,1712911840325,-500.0,0.00027671,2]
[322242418,1712911840335,-573.03156331,0.00027671,2]
[322242419,1712911840344,-3515.27,0.00027671,2]
[322242420,1712911840354,-500.0,0.00027671,2]
[322242421,1712911840363,-500.0,0.00027671,2]
[322242422,1712911840372,-500.0,0.00027671,2]
[322242423,1712911840381,-1319.03,0.00027671,2]
[322242424,1712911840390,-972.6,0.00027671,2]
[322242425,1712911840400,-930.67,0.00027671,2]
[322242426,1712911840409,-1490.64,0.00027671,2]
[322242427,1712911840418,-500.0,0.00027671,2]
[322242428,1712911840427,-12549.98,0.00027671,2]
[322242429,1712911840436,-500.0,0.00027671,2]
[322242430,1712911840446,-903.28,0.00027671,2]
[322242431,1712911840455,-278.076073,0.00027671,2]
[322242432,1712911840464,-2526.84,0.00027671,2]
[322242433,1712911840473,-151.0,0.00027671,2]
[322242434,1712911840482,-151.0,0.00027671,2]
[322242435,1712911840492,-151.0,0.00027671,2]
[322242436,1712911840502,-500.0,0.00027671,2]
[322242437,1712911840512,-151.0,0.00027671,2]
[322242438,1712911840521,-500.0,0.00027671,2]
[322242439,1712911840530,-1001.48,0.00027671,2]
[322242440,1712911840538,-510.37,0.00027671,2]
[322242441,1712911840547,-300.0,0.00027671,2]
[322242442,1712911840556,-500.0,0.00027671,2]
[322242443,1712911840566,-1101.39,0.00027671,2]
[322242444,1712911840574,-1995.73,0.00027671,2]
[322242445,1712911840584,-500.0,0.00027671,2]
[322242446,1712911840592,-5187.6,0.00027671,2]
[322242447,1712911840602,-690.87,0.00027671,2]
[322242448,1712911840610,-917.0,0.00027671,2]
[322242449,1712911840619,-3678.41904712,0.00027671,2]
[322242594,1712911843638,-301.16817036,0.00027397,2]
[322242658,1712911844251,-907.95182964,0.00027397,2]
[322242660,1712911844261,-3222.33,0.00027397,2]
[322242662,1712911844271,-363.86095288,0.00027671,2]
[322242664,1712911844282,-151.0,0.00027671,2]
[322242666,1712911844291,-151.0,0.00027671,2]
[322242668,1712911844300,-151.0,0.00027671,2]
[322242670,1712911844310,-151.0,0.00027671,2]
[322242672,1712911844321,-1494.91,0.00027671,2]
[322242674,1712911844330,-623.16563812,0.00027671,2]
[322242676,1712911844339,-500.0,0.00027671,2]
[322242678,1712911844349,-500.0,0.00027671,2]
[322242680,1712911844358,-11181.26,0.00027671,2]
[322242682,1712911844367,-2564.78,0.00027671,2]
[322242684,1712911844376,-151.0,0.00027671,2]
[322242686,1712911844385,-151.0,0.00027671,2]
[322242688,1712911844394,-151.0,0.00027671,2]
[322242690,1712911844404,-151.0,0.00027671,2]
[322242692,1712911844413,-201.007618,0.00027671,2]
[322242694,1712911844423,-500.0,0.00027671,2]
[322242696,1712911844432,-1959.68,0.00027671,2]
[322242698,1712911844441,-500.0,0.00027671,2]
[322242700,1712911844450,-500.0,0.00027671,2]
[322242702,1712911844459,-1486.5,0.00027671,2]
[322242704,1712911844469,-1033.75,0.00027671,2]
[322242706,1712911844477,-1148.69,0.00027671,2]
[322242708,1712911844487,-500.0,0.00027671,2]
[322242710,1712911844495,-1638.08,0.00027671,2]
[322242712,1712911844504,-500.0,0.00027671,2]
[322242714,1712911844514,-1209.12,0.00027671,2]
[322242715,1712911844523,-3222.33,0.00027671,2]
[322242717,1712911844533,-153.0,0.000277,2]
[322242720,1712911844545,-151.083593,0.00027873,2]
[322242722,1712911844555,-151.0,0.00027873,2]
[322242723,1712911844565,-151.0,0.00027873,2]
[322242726,1712911844574,-205.552096,0.00027873,2]
[322242727,1712911844583,-205.552096,0.00027873,2]
[322242729,1712911844592,-409.051903,0.000279,2]
[322242731,1712911844601,-153.0,0.000279,2]
[322242733,1712911844611,-151.0,0.00027917,2]
[322242735,1712911844619,-151.0,0.00027917,2]
[322242737,1712911844628,-205.552096,0.00027917,2]
[322242739,1712911844637,-205.552096,0.00027917,2]
[322242741,1712911844646,-204.5401905,0.00027943,2]
[322242743,1712911844657,-154.9690062,0.00027943,2]
[322242746,1712911844666,-1866.41705732,0.00027943,2]
[322242747,1712911844676,-546.18933093,0.00027943,2]
[322242749,1712911844685,-1519.43393804,0.00027943,2]
[322242752,1712911844696,-1799.70965994,0.00027943,2]
[322242753,1712911844705,-3736.78008316,0.00027943,2]
[322242755,1712911844714,-3244.73262931,0.00027943,2]
[322242757,1712911844723,-847.55560545,0.00027943,2]
[322242760,1712911844733,-151.0,0.00027943,2]
[322242762,1712911844742,-151.0,0.00027943,2]
[322242764,1712911844751,-1307.84743807,0.00027944,2]
[322242765,1712911844761,-2616.74714193,0.00027944,2]
[322242768,1712911844771,-9421.48697164,0.00027944,2]
[322242769,1712911844780,-151.0,0.00027944,2]
[322242771,1712911844789,-205.552096,0.00027944,2]
[322242773,1712911844799,-205.552096,0.00027944,2]
[322242775,1712911844808,-151.0,0.00027944,2]
[322242777,1712911844818,-151.0,0.00027944,2]
[322242780,1712911844828,-151.0,0.00027944,2]
[322242781,1712911844840,-1107.00758771,0.00027945,4]
[322242783,1712911844850,-3827.0,0.00027945,5]
[322242784,1712911844859,-500.0,0.00027945,2]
[322242785,1712911844867,-730.33,0.00027945,2]
[322242786,1712911844877,-155.67866071,0.00027945,2]
[322242787,1712911844886,-220.8262263,0.00027945,2]
[322242788,1712911844895,-500.0,0.00027945,2]
[322242789,1712911844903,-287.86371445,0.00027945,2]
[322242790,1712911844912,-500.0,0.00027945,2]
[322242791,1712911844921,-920.82,0.00027945,2]
[322242792,1712911844929,-539.21,0.00027945,2]
[322242793,1712911844938,-500.0,0.00027945,2]
[322242794,1712911844946,-1422.85,0.00027945,2]
[322242795,1712911844955,-500.0,0.00027945,2]
[322242796,1712911844964,-500.0,0.00027945,2]
[322242797,1712911844972,-500.0,0.00027945,2]
[322242798,1712911844981,-558.6,0.00027945,2]
[322242799,1712911844990,-500.0,0.00027945,2]
[322242800,1712911844999,-500.0,0.00027945,2]
[322242801,1712911845008,-500.0,0.00027945,2]
[322242802,1712911845017,-151.0,0.00027945,2]
[322242804,1712911845026,-151.0,0.00027945,2]
[322242805,1712911845035,-205.552096,0.00027945,2]
[322242807,1712911845045,-205.552096,0.00027945,2]
[322242809,1712911845054,-151.8318696,0.00027945,2]
[322242811,1712911845063,-500.0,0.00027945,2]
[322242813,1712911845073,-205.552096,0.00027945,2]
[322242815,1712911845081,-205.552096,0.00027945,2]
[322242817,1712911845090,-566.89,0.00027945,2]
[322242819,1712911845100,-332.21045489,0.00027945,2]
[322242821,1712911845109,-500.0,0.00027945,2]
[322242823,1712911845118,-1646.79,0.00027945,2]
[322242825,1712911845127,-500.0,0.00027945,2]
[322242827,1712911845137,-500.0,0.00027945,2]
[322242829,1712911845146,-500.0,0.00027945,2]
[322242831,1712911845155,-1223.93,0.00027945,2]
[322242833,1712911845164,-867.99,0.00027945,2]
[322242835,1712911845173,-1164.51,0.00027945,2]
[322242837,1712911845183,-500.0,0.00027945,2]
[322242839,1712911845192,-500.0,0.00027945,2]
[322242841,1712911845201,-907.17,0.00027945,2]
[322242843,1712911845212,-500.0,0.00027945,2]
[322242845,1712911845222,-500.0,0.00027945,2]
[322242847,1712911845231,-1034.85,0.00027945,2]
[322242849,1712911845242,-520.62,0.00027945,2]
[322242851,1712911845253,-397.7424633,0.00027945,2]
[322242853,1712911845262,-500.0,0.00027945,2]
[322242855,1712911845272,-500.0,0.00027945,2]
[322242857,1712911845280,-972.6,0.00027945,2]
[322242859,1712911845290,-930.67,0.00027945,2]
[322242860,1712911845299,-1490.64,0.00027945,2]
[322242862,1712911845309,-500.0,0.00027945,2]
[322242865,1712911845319,-12549.98,0.00027945,2]
[322242867,1712911845329,-500.0,0.00027945,2]
[322242869,1712911845339,-2526.84,0.00027945,2]
[322242870,1712911845348,-500.0,0.00027945,2]
[322242872,1712911845358,-151.0,0.00027945,2]
[322242874,1712911845367,-151.0,0.00027945,2]
[322242877,1712911845377,-151.0,0.00027945,2]
[322242878,1712911845386,-500.0,0.00027945,2]
[322242880,1712911845395,-1001.48,0.00027945,2]
[322242882,1712911845405,-510.37,0.00027945,2]
[322242884,1712911845414,-330.34888,0.00027945,2]
[322242886,1712911845423,-500.0,0.00027945,2]
[322242888,1712911845433,-1101.39,0.00027945,2]
[322242891,1712911845443,-1995.73,0.00027945,2]
[322242893,1712911845453,-500.0,0.00027945,2]
[322242903,1712911845537,-5187.6,0.00027945,2]
[322242905,1712911845546,-690.87,0.00027945,2]
[322242907,1712911845555,-917.0,0.00027945,2]
[322242908,1712911845565,-4042.28,0.00027945,2]
[322242911,1712911845574,-151.0,0.00027945,2]
[322242912,1712911845583,-1494.91,0.00027945,2]
[322242914,1712911845592,-151.0,0.00027945,2]
[322242916,1712911845601,-151.0,0.00027945,2]
[322242918,1712911845610,-500.0,0.00027945,2]
[322242920,1712911845619,-500.0,0.00027945,2]
[322242922,1712911845628,-11181.26,0.00027945,2]
[322242924,1712911845636,-2564.78,0.00027945,2]
[322242926,1712911845645,-151.0,0.00027945,2]
[322242928,1712911845654,-151.0,0.00027945,2]
[322242930,1712911845663,-151.0,0.00027945,2]
[322242932,1712911845672,-151.0,0.00027945,2]
[322242934,1712911845681,-500.0,0.00027945,2]
[322242936,1712911845691,-1959.68,0.00027945,2]
[322242939,1712911845700,-500.0,0.00027945,2]
[322242942,1712911845709,-500.0,0.00027945,2]
[322242945,1712911845717,-1486.5,0.00027945,2]
[322242948,1712911845726,-1033.75,0.00027945,2]
[322242951,1712911845736,-1148.69,0.00027945,2]
[322242953,1712911845745,-337.40879594,0.00027945,2]
[322242955,1712911845753,-1638.08,0.00027945,2]
[322242957,1712911845762,-500.0,0.00027945,2]
[322242959,1712911845772,-1209.12,0.00027945,2]
[322242961,1712911845781,-3222.33,0.00027945,2]
[322242963,1712911845790,-8144.96473121,0.00027972,2]
[322242965,1712911845799,-910.32239812,0.00028,2]
[322242967,1712911845808,-291.66058496,0.00028,2]
[322242969,1712911845817,-166.666666,0.00028038,2]
[322242971,1712911845827,-160.0,0.00028114,3]
[322242973,1712911845836,-151.0,0.00028147,2]
[322242975,1712911845846,-298.489128,0.00028147,2]
[322242977,1712911845855,-205.552096,0.00028147,2]
[322242980,1712911845864,-205.552096,0.00028147,2]
[322242982,1712911845874,-205.552096,0.00028147,2]
[322242984,1712911845883,-205.552096,0.00028147,2]
[322242986,1712911845892,-479.0,0.000282,2]
[322242988,1712911845902,-209.09087823,0.00028217,2]
[322242990,1712911845911,-429.55113175,0.00028217,2]
[322242992,1712911845920,-155.10837766,0.00028217,2]
[322242994,1712911845929,-155.15259198,0.00028217,2]
[322242996,1712911845939,-202.79667879,0.00028217,2]
[322242998,1712911845948,-224.45584399,0.00028218,2]
[322243000,1712911845957,-176.317594,0.00028218,2]
[322243002,1712911845966,-259.273416,0.00028218,2]
[322243004,1712911845975,-151.0,0.00028218,2]
[322243006,1712911845985,-500.0,0.00028219,2]
[322243009,1712911845994,-730.33,0.00028219,2]
[322243010,1712911846005,-422.76629683,0.00028219,2]
[322243012,1712911846014,-500.0,0.00028219,2]
[322243014,1712911846024,-920.82,0.00028219,2]
[322243016,1712911846033,-453.22150382,0.00028219,2]
[322243018,1712911846043,-1422.85,0.00028219,2]
[322243020,1712911846052,-500.0,0.00028219,2]
[322243022,1712911846061,-337.52085965,0.00028219,2]
[322243024,1712911846071,-558.6,0.00028219,2]
[322243026,1712911846080,-500.0,0.00028219,2]
[322243028,1712911846090,-500.0,0.00028219,2]
[322243030,1712911846100,-500.0,0.00028219,2]
[322243032,1712911846109,-205.552096,0.00028219,2]
[322243034,1712911846118,-500.0,0.00028219,2]
[322243036,1712911846127,-205.552097,0.00028219,2]
[322243038,1712911846136,-566.89,0.00028219,2]
[322243040,1712911846146,-500.0,0.00028219,2]
[322243042,1712911846155,-1646.79,0.00028219,2]
[322243044,1712911846164,-500.0,0.00028219,2]
[322243046,1712911846173,-500.0,0.00028219,2]
[322243048,1712911846182,-500.0,0.00028219,2]
[322243050,1712911846193,-1223.93,0.00028219,2]
[322243052,1712911846202,-867.99,0.00028219,2]
[322243054,1712911846211,-1164.51,0.00028219,2]
[322243056,1712911846221,-500.0,0.00028219,2]
[322243058,1712911846230,-500.0,0.00028219,2]
[322243060,1712911846241,-907.17,0.00028219,2]
[322243062,1712911846251,-500.0,0.00028219,2]
[322243064,1712911846260,-500.0,0.00028219,2]
[322243066,1712911846270,-1034.85,0.00028219,2]
[322243068,1712911846281,-520.62,0.00028219,2]
[322243070,1712911846290,-302.76741692,0.00028219,2]
[322243072,1712911846302,-500.0,0.00028219,2]
[322243074,1712911846312,-972.6,0.00028219,2]
[322243076,1712911846322,-930.67,0.00028219,2]
[322243078,1712911846333,-1490.64,0.00028219,2]
[322243080,1712911846342,-500.0,0.00028219,2]
[322243082,1712911846352,-12549.98,0.00028219,2]
[322243084,1712911846361,-500.0,0.00028219,2]
[322243086,1712911846370,-2526.84,0.00028219,2]
[322243088,1712911846379,-500.0,0.00028219,2]
[322243090,1712911846388,-500.0,0.00028219,2]
[322243092,1712911846397,-1001.48,0.00028219,2]
[322243094,1712911846407,-510.37,0.00028219,2]
[322243096,1712911846415,-500.0,0.00028219,2]
[322243098,1712911846424,-1101.39,0.00028219,2]
[322243100,1712911846433,-1995.73,0.00028219,2]
[322243102,1712911846442,-500.0,0.00028219,2]
[322243104,1712911846452,-5187.6,0.00028219,2]
[322243106,1712911846461,-690.87,0.00028219,2]
[322243108,1712911846470,-917.0,0.00028219,2]
[322243110,1712911846479,-4042.28,0.00028219,2]
[322243112,1712911846488,-1494.91,0.00028219,2]
[322243114,1712911846498,-500.0,0.00028219,2]
[322243116,1712911846507,-500.0,0.00028219,2]
[322243118,1712911846516,-11181.26,0.00028219,2]
[322243120,1712911846526,-2564.78,0.00028219,2]
[322243122,1712911846535,-500.0,0.00028219,2]
[322243124,1712911846544,-1959.68,0.00028219,2]
[322243126,1712911846554,-500.0,0.00028219,2]
[322243128,1712911846563,-500.0,0.00028219,2]
[322243129,1712911846574,-1486.5,0.00028219,2]
[322243132,1712911846584,-1033.75,0.00028219,2]
[322243134,1712911846593,-1148.69,0.00028219,2]
[322243136,1712911846603,-1638.08,0.00028219,2]
[322243138,1712911846612,-500.0,0.00028219,2]
[322243140,1712911846621,-1209.12,0.00028219,2]
[322243142,1712911846630,-3222.33,0.00028219,2]
[322243144,1712911846639,-150.0,0.00028383,2]
[322243146,1712911846648,-160.0,0.00028384,4]
[322243148,1712911846657,-586.0,0.000284,2]
[322243150,1712911846666,-500.0,0.00028493,2]
[322243152,1712911846676,-730.33,0.00028493,2]
[322243154,1712911846684,-603.8304233,0.00028493,2]
[322243156,1712911846694,-920.82,0.00028493,2]
[322243158,1712911846703,-1422.85,0.00028493,2]
[322243160,1712911846713,-500.0,0.00028493,2]
[322243162,1712911846723,-558.6,0.00028493,2]
[322243164,1712911846732,-187.85934081,0.00028493,2]
[322243166,1712911846741,-500.0,0.00028493,2]
[322243168,1712911846750,-500.0,0.00028493,2]
[322243170,1712911846760,-500.0,0.00028493,2]
[322243172,1712911846770,-566.89,0.00028493,2]
[322243174,1712911846779,-500.0,0.00028493,2]
[322243177,1712911846789,-1646.79,0.00028493,2]
[322243178,1712911846798,-500.0,0.00028493,2]
[322243180,1712911846807,-500.0,0.00028493,2]
[322243183,1712911846817,-500.0,0.00028493,2]
[322243185,1712911846826,-1223.93,0.00028493,2]
[322243186,1712911846835,-867.99,0.00028493,2]
[322243188,1712911846844,-1164.51,0.00028493,2]
[322243190,1712911846853,-500.0,0.00028493,2]
[322243192,1712911846862,-500.0,0.00028493,2]
[322243194,1712911846871,-907.17,0.00028493,2]
[322243196,1712911846882,-500.0,0.00028493,2]
[322243198,1712911846893,-500.0,0.00028493,2]
[322243200,1712911846903,-1034.85,0.00028493,2]
[322243202,1712911846913,-520.62,0.00028493,2]
[322243204,1712911846922,-500.0,0.00028493,2]
[322243207,1712911846931,-972.6,0.00028493,2]
[322243209,1712911846941,-930.67,0.00028493,2]
[322243210,1712911846951,-1490.64,0.00028493,2]
[322243212,1712911846960,-500.0,0.00028493,2]
[322243214,1712911846971,-12549.98,0.00028493,2]
[322243216,1712911846982,-500.0,0.00028493,2]
[322243218,1712911847019,-2526.84,0.00028493,2]
[322243220,1712911847040,-500.0,0.00028493,2]
[322243222,1712911847050,-500.0,0.00028493,2]
[322243224,1712911847060,-1001.48,0.00028493,2]
[322243226,1712911847070,-510.37,0.00028493,2]
[322243228,1712911847079,-500.0,0.00028493,2]
[322243230,1712911847088,-1101.39,0.00028493,2]
[322243232,1712911847097,-1995.73,0.00028493,2]
[322243234,1712911847106,-500.0,0.00028493,2]
[322243236,1712911847117,-5187.6,0.00028493,2]
[322243238,1712911847127,-690.87,0.00028493,2]
[322243241,1712911847138,-917.0,0.00028493,2]
[322243242,1712911847148,-4042.28,0.00028493,2]
[322243245,1712911847158,-1494.91,0.00028493,2]
[322243246,1712911847168,-500.0,0.00028493,2]
[322243248,1712911847178,-500.0,0.00028493,2]
[322243250,1712911847188,-11181.26,0.00028493,2]
[322243252,1712911847198,-2564.78,0.00028493,2]
[322243254,1712911847208,-500.0,0.00028493,2]
[322243256,1712911847222,-1959.68,0.00028493,2]
[322243258,1712911847234,-500.0,0.00028493,2]
[322243260,1712911847245,-500.0,0.00028493,2]
[322243262,1712911847256,-1486.5,0.00028493,2]
[322243264,1712911847266,-1033.75,0.00028493,2]